bitfinex/quotes_ETHUSD_20250112
["timestamp","ask_amount","ask_price","bid_price","bid_amount"]
[1736704126080,0.32976449,3291.7,3291.2,0.55]
[1736704126417,0.04112349,3291.7,3291.1,0.55]
[1736704126561,0.04112349,3291.7,3291.5,0.5575]
[1736704126767,0.288602,3292.4,3291.7,0.55]
[1736704127068,2.12613,3292.4,3291.7,0.55]
[1736704127263,0.04112349,3292.3,3291.7,0.55]
[1736704130669,2.16732349,3292.3,3291.7,0.55]
[1736704131798,2.16732349,3292.3,3291.8,0.0075]
[1736704133312,2.16732349,3292.3,3291.6,0.8054]
[1736704133313,2.12631,3292.1,3291.6,0.8054]
[1736704133470,2.12631,3292.1,3291.7,0.55]
[1736704133471,0.04101249,3292.0,3291.7,0.55]
[1736704137201,2.16739249,3292.0,3291.7,0.55]
[1736704137400,3.17353174,3292.0,3291.5,0.0075]
[1736704137879,1.04715174,3292.0,3291.4,1.3789]
[1736704138026,2.12662,3291.6,3291.1,0.8289]
[1736704138190,0.7894,3291.5,3291.1,0.8289]
[1736704138393,0.83062655,3291.5,3291.2,0.55]
[1736704138612,0.7894,3291.5,3291.2,0.55]
[1736704139033,0.7894,3291.5,3290.8,0.8364]
[1736704139034,3.207692,3291.5,3290.8,0.8364]
[1736704139339,0.04122655,3291.4,3291.0,0.0075]
[1736704139632,0.04122655,3291.4,3291.2,2.68437]
[1736704139936,2.91553,3292.4,3291.5,0.0225]
[1736704140132,0.04094906,3292.3,3291.6,0.0075]
[1736704140504,2.12623,3292.2,3291.5,0.0075]
[1736704140819,0.21671791,3292.1,3291.5,0.0075]
[1736704140988,0.04094906,3292.1,3291.5,0.0075]
[1736704142117,2.12637,3292.0,3291.4,0.55]
[1736704142325,0.03978365,3291.9,3291.4,0.55]
[1736704143395,2.12637,3292.0,3291.4,0.55]
[1736704143592,0.03978365,3291.8,3291.4,0.55]
[1736704143795,2.12637,3292.0,3291.4,0.55]
[1736704144109,0.212637,3291.9,3291.4,0.55]
[1736704144289,0.03978365,3291.8,3291.4,0.55]
[1736704150558,2.95547,3291.7,3291.1,0.7536]
[1736704150757,2.95547,3291.7,3290.7,2.13468]
[1736704150758,0.03960131,3291.6,3290.9,0.7536]
[1736704151061,0.8289,3291.5,3290.7,0.7611]
[1736704151219,0.8289,3291.5,3290.7,0.7536]
[1736704151220,2.12689,3291.2,3290.7,0.7536]
[1736704151416,2.339579,3291.2,3290.8,0.55]
[1736704151711,0.03930796,3291.1,3290.7,0.7536]
[1736704151961,0.03930796,3291.1,3290.8,0.55]
[1736704153756,0.03930796,3291.1,3290.7,0.7536]
[1736704153946,0.8113,3291.0,3290.4,0.7667]
[1736704154258,1.1090568,3291.0,3290.5,0.55]
[1736704154464,0.03930796,3290.9,3290.5,0.55]
[1736704162794,0.03930796,3290.9,3290.6,0.0075]
[1736704163163,2.88667,3291.4,3290.6,0.0075]
[1736704163478,0.03866559,3291.3,3290.6,0.0075]
[1736704163694,0.03866559,3291.3,3290.8,0.55]
[1736704163851,0.03866559,3291.3,3291.0,0.55]
[1736704164187,0.03818181,3291.2,3291.0,0.55]
[1736704164563,2.88646,3291.7,3291.0,0.55]
[1736704164764,0.34792781,3291.6,3291.0,0.55]
[1736704164966,0.7599,3291.4,3290.8,0.55]
[1736704165163,0.03830872,3291.3,3290.8,0.55]
[1736704178175,0.03830872,3291.3,3290.5,3.015]
[1736704178500,0.03830872,3291.3,3290.7,0.0075]
[1736704182985,0.7599,3291.4,3290.7,0.0075]
[1736704183164,0.03838803,3291.3,3290.8,0.7717]
[1736704183369,0.7879,3291.7,3291.0,0.0075]
[1736704183598,0.03838803,3291.6,3291.1,0.55]
[1736704184114,0.03838803,3291.6,3291.0,0.5575]
[1736704184269,0.03838803,3291.6,3291.0,0.58788279]
[1736704184666,0.03838803,3291.6,3291.2,0.5575]
[1736704184896,0.03838803,3291.6,3291.2,2.68437]
[1736704185095,0.7879,3292.0,3291.2,2.68437]
[1736704185472,0.03838803,3291.9,3291.2,2.68437]
[1736704186317,0.03838803,3291.9,3291.4,0.55]
[1736704188115,0.03838803,3291.9,3291.3,0.55]
[1736704189672,0.03838803,3291.9,3291.4,0.60288126]
[1736704190071,0.03838803,3291.9,3291.6,0.5575]
[1736704190566,0.7879,3292.3,3291.6,0.5575]
[1736704190718,0.03938725,3291.8,3291.6,0.5575]
[1736704190912,0.7879,3292.3,3291.6,0.5575]
[1736704191074,1.1004,3292.3,3291.6,0.5575]
[1736704191279,0.03938725,3292.2,3291.8,0.0075]
[1736704191489,0.03938725,3292.2,3292.0,0.55]
[1736704191709,0.7935,3292.6,3292.0,0.55]
[1736704192080,0.03811029,3292.5,3292.0,0.55]
[1736704193581,0.03811029,3292.5,3292.3,0.0075]
[1736704193782,0.7935,3292.9,3292.3,0.0075]
[1736704194003,0.7935,3293.2,3292.4,0.55]
[1736704194198,0.33023427,3293.1,3292.4,0.55]
[1736704194431,0.03833227,3293.1,3292.5,0.0075]
[1736704194610,0.03833227,3293.1,3292.7,0.0075]
[1736704194810,0.005,3293.4,3292.9,0.55]
[1736704195010,0.03833227,3293.3,3292.9,0.55]
[1736704195209,0.03833227,3293.3,3292.7,0.5575]
[1736704195409,0.005,3293.4,3292.7,0.5575]
[1736704195651,0.03833227,3293.3,3292.7,0.5575]
[1736704196025,0.005,3293.4,3292.7,0.5575]
[1736704196342,0.3142654,3293.4,3292.7,0.5575]
[1736704196642,0.03833227,3293.3,3292.7,0.5575]
[1736704196844,0.3142654,3293.4,3292.7,0.5575]
[1736704197645,0.005,3293.4,3292.9,0.5575]
[1736704198145,0.03833227,3293.3,3292.9,0.5575]
[1736704198328,0.005,3293.4,3292.9,0.5575]
[1736704201045,0.005,3293.4,3292.9,0.015]
[1736704204266,0.005,3293.4,3292.9,0.04536441]
[1736704204619,0.005,3293.4,3292.9,0.015]
[1736704205319,0.005,3293.4,3292.9,0.31595141]
[1736704206262,0.005,3293.4,3293.0,0.7546]
[1736704206449,0.005,3293.4,3293.1,0.5575]
[1736704206617,0.0394022,3293.3,3293.1,0.5575]
[1736704210263,0.0394022,3293.3,3293.1,0.55]
[1736704210424,0.0394022,3293.3,3292.8,0.7696]
[1736704210619,0.005,3293.4,3292.9,0.565]
[1736704210851,0.04028974,3293.3,3292.9,0.59536443]
[1736704211054,0.04028974,3293.3,3292.9,0.94444785]
[1736704211259,0.005,3293.4,3292.9,0.94444785]
[1736704211722,0.04028974,3293.3,3292.9,0.94444785]
[1736704211922,0.005,3293.4,3292.9,0.94444785]
[1736704211923,0.005,3293.4,3293.2,0.5575]
[1736704212125,0.005,3293.4,3293.3,6.3724]
[1736704212438,0.005,3293.4,3293.3,6.88870985]
[1736704212768,0.04540065,3293.4,3293.3,0.5575]
[1736704213111,0.04540065,3293.4,3293.3,5.5575]
[1736704213569,0.005,3293.4,3293.3,5.5575]
[1736704214069,0.005,3293.4,3293.3,6.3724]
[1736704214220,0.005,3293.4,3293.3,1.3724]
[1736704214422,0.04540065,3293.4,3293.3,1.3724]
[1736704216146,0.04540065,3293.4,3293.3,0.5575]
[1736704216147,0.005,3293.4,3293.3,0.5575]
[1736704217144,0.005,3293.4,3293.3,5.5575]
[1736704217435,0.005,3293.4,3293.3,5.78353626]
[1736704217634,0.005,3293.4,3293.3,5.79853626]
[1736704217931,0.005,3293.4,3293.3,7.92405626]
[1736704220059,0.005,3293.4,3293.3,5.79853626]
[1736704228489,0.005,3293.4,3293.3,5.79103626]
[1736704228694,0.005,3293.4,3293.3,4.52007]
[1736704228926,0.005,3293.4,3293.3,4.21555]
[1736704233956,0.005,3293.4,3293.3,3.91103]
[1736704235653,0.07218527,3293.4,3293.3,3.91103]
[1736704235894,0.005,3293.4,3293.3,3.91103]
[1736704236091,0.07218527,3293.4,3293.3,3.91103]
[1736704236295,0.005,3293.4,3293.3,3.91103]
[1736704236777,0.07218527,3293.4,3293.3,3.91103]
[1736704243907,0.07218527,3293.4,3293.3,0.55]
[1736704252144,0.07218527,3293.4,3293.3,5.55]
[1736704252441,0.07218527,3293.4,3293.3,6.8656]
[1736704252645,0.005,3293.4,3293.3,6.8806]
[1736704254623,0.0722803,3293.4,3293.3,6.1275]
[1736704254955,0.0722803,3293.4,3293.3,6.12]
[1736704255352,0.0722803,3293.4,3293.3,6.1125]
[1736704255550,0.0722803,3293.4,3293.3,5.5575]
[1736704258257,0.005,3293.4,3293.3,5.5575]
[1736704259762,0.005,3293.4,3293.3,5.5725]
[1736704263989,0.005,3293.4,3293.3,6.3256]
[1736704265331,0.005,3293.4,3293.3,6.60874304]
[1736704267913,0.005,3293.4,3293.3,7.60183392]
[1736704268071,0.005,3293.4,3293.3,8.73426304]
[1736704268586,0.005,3293.4,3293.3,9.93086878]
[1736704270860,0.005,3293.4,3293.3,7.80534878]
[1736704271200,0.005,3293.4,3293.3,6.60874304]
[1736704272243,0.005,3293.4,3293.3,5.85564304]
[1736704275420,0.005,3293.4,3293.3,12.18526878]
[1736704275617,0.005,3293.4,3293.3,12.93996878]
[1736704275976,0.005,3293.4,3293.3,14.13657452]
[1736704276773,0.005,3293.4,3293.3,13.16635739]
[1736704277232,0.005,3293.4,3293.3,14.36296313]
[1736704277432,0.005,3293.4,3293.3,13.16635739]
[1736704278148,0.005,3293.4,3293.3,12.88321435]
[1736704278475,0.005,3293.4,3293.3,14.07982009]
[1736704278647,0.005,3293.4,3293.3,14.3626575]
[1736704278832,0.005,3293.4,3293.3,23.2826575]
[1736704279234,0.005,3293.4,3293.3,22.08605176]
[1736704279533,0.005,3293.4,3293.3,23.2826575]
[1736704280276,0.005,3293.4,3293.3,23.89477769]
[1736704282591,0.168764,3293.6,3293.5,5.0]
[1736704282757,0.8094,3295.0,3293.5,5.0]
[1736704282758,0.8094,3295.0,3294.3,2.12484]
[1736704282956,0.8094,3295.0,3294.6,0.0225]
[1736704283169,0.8094,3295.0,3294.8,0.0075]
[1736704283365,0.8094,3295.5,3295.0,0.0075]
[1736704283582,0.8094,3295.5,3295.1,0.55]
[1736704283783,0.8094,3295.5,3295.0,0.0075]
[1736704283956,0.8094,3295.5,3295.1,0.55]
[1736704284373,0.8094,3295.5,3294.9,0.5575]
[1736704284859,0.8094,3295.5,3294.9,0.0075]
[1736704286588,2.1243,3295.3,3294.6,3.0]
[1736704286772,0.8094,3295.1,3294.5,8.92]
[1736704286978,0.8094,3294.9,3294.5,8.92]
[1736704287172,2.93392,3294.9,3294.6,0.55]
[1736704287911,2.93392,3294.9,3294.1,0.5725]
[1736704288217,2.93392,3294.9,3294.3,0.5575]
[1736704288579,0.06790967,3294.8,3294.3,0.5575]
[1736704289211,0.06790967,3294.8,3294.2,0.5575]
[1736704291066,0.8094,3294.7,3294.2,0.5575]
[1736704291380,0.8094,3294.7,3294.2,0.0075]
[1736704292012,0.8094,3294.7,3294.2,0.03785288]
[1736704295522,0.8094,3294.7,3294.3,0.55]
[1736704299085,0.8094,3294.7,3294.4,0.03035283]
[1736704299383,0.8084,3295.2,3294.5,2.68225]
[1736704299620,0.8084,3295.2,3294.7,0.5575]
[1736704299827,0.06728693,3295.1,3294.7,0.5575]
[1736704300021,0.8084,3295.2,3294.7,0.5575]
[1736704300325,0.8084,3295.2,3294.7,0.0075]
[1736704301336,0.8084,3295.2,3294.5,0.5725]
[1736704301526,0.8084,3295.2,3294.5,1.24571393]
[1736704302021,0.06728693,3295.1,3294.5,1.24571393]
[1736704302227,0.8084,3295.2,3294.5,1.24571393]
[1736704302435,0.8084,3295.2,3294.5,0.5575]
[1736704302581,0.8084,3295.4,3294.5,0.0075]
[1736704302783,0.8084,3295.2,3294.3,0.0225]
[1736704303087,0.06742152,3295.1,3294.3,3.5725]
[1736704303290,0.06742152,3295.1,3294.5,0.0075]
[1736704303506,0.8084,3295.0,3294.5,0.0075]
[1736704303890,0.8084,3295.0,3294.3,0.0225]
[1736704304091,0.06742152,3294.9,3294.3,0.0225]
[1736704304336,0.8084,3294.8,3294.3,0.0225]
[1736704306521,0.06729485,3294.7,3294.3,0.5725]
[1736704306836,0.8084,3294.8,3294.5,0.5575]
[1736704307191,0.06727902,3294.7,3294.5,0.5575]
[1736704307750,0.8084,3295.0,3294.5,0.5575]
[1736704308039,0.8084,3295.0,3294.4,0.0075]
[1736704308202,0.06730277,3294.9,3294.4,0.5575]
[1736704308403,0.06730277,3294.9,3294.4,0.0075]
[1736704308914,0.06730277,3294.9,3294.4,0.03785137]
[1736704309252,0.06730277,3294.9,3294.5,0.83283386]
[1736704309599,0.8084,3295.0,3294.5,0.83283386]
[1736704309817,2.12429,3295.3,3294.7,0.55]
[1736704310021,0.0672711,3294.9,3294.7,0.55]
[1736704310214,0.212429,3295.2,3294.6,0.55]
[1736704310421,0.0672711,3294.8,3294.6,0.55]
[1736704310633,0.8084,3294.9,3294.6,0.55]
[1736704310833,0.0672711,3294.7,3294.5,0.55]
[1736704311075,0.8084,3294.9,3294.5,0.55]
[1736704311433,0.0672711,3294.8,3294.5,0.55]
[1736704312005,0.8084,3295.1,3294.5,0.55]
[1736704312249,0.06728693,3294.7,3294.5,0.55]
[1736704312451,0.8084,3295.1,3294.5,0.89897214]
[1736704312651,0.8084,3295.1,3294.5,0.55]
[1736704312955,0.06730277,3295.0,3294.5,0.55]
[1736704316147,0.8084,3295.3,3294.6,0.28304213]
[1736704316456,0.06728693,3294.9,3294.6,0.28304213]
[1736704316656,0.8084,3295.3,3294.6,0.28304213]
[1736704316862,0.06728693,3294.8,3294.5,0.55]
[1736704317064,2.93264,3295.3,3294.5,0.55]
[1736704317258,0.41282279,3295.2,3294.5,0.55]
[1736704317564,0.48011764,3295.2,3294.5,0.55]
[1736704319158,0.48011764,3295.2,3294.6,0.28312797]
[1736704319360,2.60441764,3295.2,3294.6,0.28312797]
[1736704319561,2.19159485,3295.2,3294.6,0.28312797]
[1736704320363,2.19159485,3295.2,3294.6,0.0075]
[1736704323075,2.19159485,3295.2,3294.7,0.28320474]
[1736704323935,2.19159485,3295.2,3294.6,0.0075]
[1736704326275,2.19159485,3295.2,3294.7,0.28324291]
[1736704327085,2.61115312,3295.2,3294.7,0.28324291]
[1736704327297,0.8009,3294.9,3294.1,2.12498]
[1736704327586,0.06719985,3294.8,3294.1,2.12498]
[1736704327735,0.06719985,3294.8,3294.2,0.5575]
[1736704328244,0.06719985,3294.8,3294.2,0.78416465]
[1736704328687,1.19558785,3294.5,3294.2,0.22666465]
[1736704328985,2.12488,3294.3,3294.2,0.22666465]
[1736704329282,2.99283275,3294.4,3293.6,0.0075]
[1736704329484,0.06700189,3294.3,3293.6,0.0075]
[1736704329644,0.8009,3294.4,3293.6,1.20308785]
[1736704329867,0.06700189,3294.2,3293.8,1.21058785]
[1736704330185,0.8009,3294.4,3294.0,0.0075]
[1736704330569,0.06700189,3294.3,3294.0,0.0075]
[1736704331094,0.06700189,3294.3,3294.2,0.55]
[1736704331382,0.06700189,3294.3,3294.2,0.5575]
[1736704331564,0.8009,3294.6,3294.2,0.5575]
[1736704331879,0.06700189,3294.3,3294.2,0.5575]
[1736704332085,0.8009,3294.6,3294.2,0.5575]
[1736704332289,0.06678017,3294.3,3294.2,0.84051132]
[1736704332455,0.8009,3294.6,3294.2,0.84051132]
[1736704332978,0.06678017,3294.5,3294.2,0.84051132]
[1736704333783,0.06678017,3294.5,3294.2,0.5575]
[1736704335235,0.06678017,3294.5,3294.2,0.0075]
[1736704335438,0.06678017,3294.5,3294.0,0.55]
[1736704335881,2.9256,3294.6,3294.0,0.55]
[1736704336094,0.06680392,3294.4,3294.0,0.55]
[1736704336255,2.12477,3294.5,3293.9,0.45278643]
[1736704336456,0.7809,3294.2,3293.6,1.26098643]
[1736704336651,0.7809,3294.2,3293.7,0.5575]
[1736704336860,0.7809,3294.2,3293.7,0.0075]
[1736704337169,0.06680392,3294.1,3293.7,0.0075]
[1736704337774,0.06680392,3294.1,3293.7,0.5575]
[1736704340061,0.06680392,3294.1,3293.8,0.28285743]
[1736704341200,0.06680392,3294.1,3293.7,0.5575]
[1736704342197,0.7809,3294.2,3293.7,0.5575]
[1736704342801,0.06648716,3294.1,3293.7,0.5575]
[1736704343110,0.06648716,3294.1,3293.8,0.5575]
[1736704343313,0.06648716,3294.1,3294.0,0.5575]
[1736704343615,0.8316,3294.8,3294.0,5.5575]
[1736704343909,2.95616,3294.8,3294.0,0.84031893]
[1736704344066,0.06648716,3294.7,3294.0,0.84031893]
[1736704345161,0.06648716,3294.7,3294.2,0.55]
[1736704346818,0.06648716,3294.7,3294.0,0.5575]
[1736704347411,0.06648716,3294.7,3294.2,0.0075]
[1736704347771,0.06648716,3294.7,3294.2,0.015]
[1736704347973,0.06648716,3294.7,3294.4,0.5575]
[1736704348199,0.8094,3295.0,3294.4,0.5575]
[1736704348403,0.0664238,3294.6,3294.4,0.5575]
[1736704348616,0.8094,3295.0,3294.4,0.5575]
[1736704348858,0.0664238,3294.5,3294.4,0.5575]
[1736704349052,0.8094,3295.0,3294.4,5.72297174]
[1736704349250,0.8094,3295.0,3294.4,0.72297174]
[1736704349453,0.0664238,3294.9,3294.4,0.72297174]
[1736704350757,0.0664238,3294.9,3294.4,0.5575]
[1736704353637,0.0664238,3294.9,3294.1,0.45278643]
[1736704353638,0.7866,3294.7,3294.1,0.45278643]
[1736704353864,2.91128,3294.7,3294.1,0.45278643]
[1736704354059,0.7866,3294.7,3294.1,0.45278643]
[1736704354360,4.5977082,3295.2,3294.1,0.45278643]
[1736704354361,0.7866,3294.3,3294.1,0.45278643]
[1736704354531,0.7866,3294.3,3293.7,0.5575]
[1736704354856,0.06678018,3294.2,3293.7,0.0075]
[1736704355532,0.06678018,3294.2,3293.9,0.55]
[1736704355719,0.7866,3294.3,3293.9,0.55]
[1736704356061,0.06678018,3294.2,3293.9,0.55]
[1736704356429,0.7866,3294.3,3293.7,0.58785794]
[1736704356622,0.06678018,3294.1,3293.7,0.58785794]
[1736704356826,0.7866,3294.3,3293.9,0.55]
[1736704357130,0.06678018,3294.2,3293.7,0.5575]
[1736704357330,0.7866,3294.3,3293.7,0.5575]
[1736704357529,0.06678018,3294.2,3293.7,0.5575]
[1736704357868,0.7866,3294.3,3293.7,0.5575]
[1736704358368,0.06678018,3294.2,3293.7,0.5575]
[1736704358570,0.7866,3294.3,3293.7,0.5575]
[1736704358924,0.06678018,3294.2,3293.7,0.5575]
[1736704359122,0.06678018,3294.2,3293.8,0.28293778]
[1736704359326,0.29782902,3294.2,3293.8,0.28293778]
[1736704359523,0.06678018,3294.1,3293.9,0.55]
[1736704360334,0.06678018,3294.1,3293.5,0.5575]
[1736704360686,0.29782902,3294.2,3293.5,0.5575]
[1736704361549,0.29782902,3294.2,3293.7,0.5575]
[1736704361896,2.91151,3294.3,3293.7,0.5575]
[1736704362237,0.06643172,3294.2,3293.7,0.5575]
[1736704362586,2.91151,3294.3,3293.7,0.5575]
[1736704362740,2.91151,3294.3,3293.5,0.5575]
[1736704362940,0.06611494,3294.2,3293.5,0.78388411]
[1736704363164,2.91151,3294.3,3293.5,0.78388411]
[1736704363463,0.06611494,3294.2,3293.5,0.78388411]
[1736704363824,2.91151,3294.3,3293.5,0.97050201]
[1736704364001,2.91151,3294.3,3293.5,0.7441179]
[1736704364206,0.06612286,3294.2,3293.5,0.7441179]
[1736704364390,2.91151,3294.3,3293.5,0.7441179]
[1736704365115,2.91151,3294.3,3293.7,0.5575]
[1736704365318,2.416061,3294.3,3293.7,0.5575]
[1736704365525,0.7671,3294.1,3293.7,0.5575]
[1736704366186,0.7671,3294.1,3293.6,0.0075]
[1736704367536,0.7671,3294.1,3293.7,0.28295844]
[1736704367835,0.06609118,3294.0,3293.7,0.28295844]
[1736704368410,0.7671,3294.1,3293.7,0.28295844]
[1736704368622,0.7671,3294.1,3293.6,0.0075]
[1736704370439,0.7671,3294.1,3293.7,0.55]
[1736704370935,0.7671,3294.1,3293.6,0.0075]
[1736704372711,0.7671,3294.1,3293.7,0.28290209]
[1736704373700,0.7671,3294.1,3293.6,0.0075]
[1736704375763,0.0659882,3294.0,3293.6,0.0075]
[1736704376218,0.0659882,3294.0,3293.7,0.28287438]
[1736704377463,0.0659882,3294.0,3293.6,0.0075]
[1736704379813,0.0659882,3294.0,3293.7,0.28301405]
[1736704380649,0.0659882,3294.0,3293.8,0.55]
[1736704381150,0.0659882,3294.0,3293.6,0.0075]
[1736704382443,0.0659882,3294.0,3293.6,0.5575]
[1736704382655,0.7671,3294.1,3293.6,0.5575]
[1736704382969,0.7671,3294.1,3293.5,0.5575]
[1736704383167,0.0659882,3294.0,3293.5,0.5575]
[1736704383866,0.0659882,3294.0,3293.7,0.55]
[1736704385066,0.0659882,3294.0,3293.9,0.55]
[1736704385872,0.0659882,3294.0,3293.4,0.565]
[1736704386966,0.0659882,3294.0,3293.6,0.5575]
[1736704388365,0.0659882,3294.0,3293.8,0.55]
[1736704389576,0.0659882,3294.0,3293.4,0.5575]
[1736704390671,0.0659882,3294.0,3293.4,0.58786009]
[1736704390836,0.0659882,3294.0,3293.6,0.5575]
[1736704391258,0.7671,3294.1,3293.6,0.5575]
[1736704391536,0.7671,3294.1,3293.8,0.55]
[1736704391732,0.06590106,3294.0,3293.8,0.55]
[1736704392136,0.06590106,3294.0,3293.9,0.83342468]
[1736704392330,0.06590106,3294.0,3293.9,1.00193983]
[1736704392528,0.8173,3294.7,3293.9,8.17902445]
[1736704392765,0.8173,3294.7,3294.3,0.0075]
[1736704393101,0.8173,3294.9,3294.3,0.0075]
[1736704393569,0.8173,3294.9,3294.5,0.55]
[1736704393570,0.06374279,3294.8,3294.5,0.55]
[1736704394331,2.18830279,3294.8,3294.5,0.55]
[1736704394531,0.8173,3294.7,3294.1,0.565]
[1736704394974,2.12456,3294.8,3293.7,0.62481359]
[1736704394975,2.18848279,3294.6,3293.7,2.03694462]
[1736704395184,2.94205,3294.5,3293.8,0.0075]
[1736704395391,0.06394096,3294.4,3293.8,0.5575]
[1736704395682,0.06394096,3294.4,3293.8,0.84053083]
[1736704396584,0.06394096,3294.4,3294.0,0.55]
[1736704397494,0.06394096,3294.4,3293.9,0.55]
[1736704398498,0.06394096,3294.4,3294.0,0.2830637]
[1736704399788,0.06394096,3294.4,3293.9,0.55]
[1736704402350,0.06394096,3294.4,3293.9,0.81248015]
[1736704403251,0.06394096,3294.4,3294.0,0.28301485]
[1736704404693,0.06394096,3294.4,3293.9,0.55]
[1736704405812,0.06394096,3294.4,3293.8,0.5575]
[1736704407118,0.06394096,3294.4,3293.9,0.28301497]
[1736704407926,0.06394096,3294.4,3294.2,1.3907]
[1736704408126,0.06394096,3294.4,3294.3,7.05779117]
[1736704408299,0.8173,3295.2,3294.6,0.5575]
[1736704408687,0.0639172,3295.1,3294.6,0.5575]
[1736704408888,0.8173,3295.2,3294.6,0.5575]
[1736704409301,0.0639172,3295.1,3294.6,0.5575]
[1736704409630,0.8173,3295.2,3294.6,0.5575]
[1736704410131,0.0639172,3295.1,3294.6,0.5575]
[1736704410422,0.8173,3295.2,3294.6,0.5575]
[1736704410802,0.0639172,3295.1,3294.6,0.5575]
[1736704411492,0.8173,3295.2,3294.6,0.5575]
[1736704411892,0.06428973,3295.1,3294.6,0.5575]
[1736704412226,0.8173,3295.2,3294.6,0.5575]
[1736704412616,0.06429765,3295.1,3294.6,0.5575]
[1736704413135,0.8173,3295.2,3294.6,0.5575]
[1736704413437,0.06429765,3295.1,3294.6,0.5575]
[1736704413965,0.8173,3295.2,3294.6,0.5575]
[1736704414438,0.06429765,3295.1,3294.6,0.5575]
[1736704414935,0.8173,3295.2,3294.6,0.5575]
[1736704415438,0.06429765,3295.1,3294.6,0.5575]
[1736704415632,0.06429765,3295.1,3294.6,0.81922945]
[1736704415938,0.8173,3295.2,3294.6,0.81922945]
[1736704416145,0.00113322,3295.3,3294.8,0.0075]
[1736704416302,0.06429765,3295.1,3294.8,0.0075]
[1736704416505,0.00113322,3295.3,3295.0,0.5575]
[1736704417039,0.00113322,3295.3,3294.8,0.55]
[1736704417216,0.7957,3295.2,3294.5,0.8332]
[1736704417416,0.7957,3295.2,3294.6,0.5575]
[1736704420163,0.7957,3295.2,3294.6,0.5878492]
[1736704420685,0.7957,3295.2,3294.6,0.5575]
[1736704421049,0.7957,3295.2,3294.6,0.58784921]
[1736704421545,2.12539322,3295.3,3294.6,1.78409383]
[1736704421745,0.00113322,3295.3,3294.8,0.0075]
[1736704421960,0.00113322,3295.3,3295.0,0.5575]
[1736704422277,0.06476529,3295.2,3295.0,0.5575]
[1736704422747,0.00113322,3295.3,3295.0,0.5575]
[1736704422947,0.06476529,3295.1,3295.0,0.5575]
[1736704423156,0.00113322,3295.3,3295.0,4.6766]
[1736704423350,0.00113322,3295.3,3295.0,0.5575]
[1736704423542,0.06476529,3295.2,3295.0,0.5575]
[1736704423937,0.00113322,3295.3,3295.0,0.5575]
[1736704424162,0.06476529,3295.1,3295.0,0.5575]
[1736704424567,0.00113322,3295.3,3295.0,0.5575]
[1736704424751,0.06476529,3295.2,3295.0,0.5575]
[1736704424924,0.00113322,3295.3,3295.0,0.5575]
[1736704425132,0.06476529,3295.2,3295.0,0.5575]
[1736704425555,0.00113322,3295.3,3295.0,0.5575]
[1736704425756,0.06476529,3295.1,3295.0,0.5575]
[1736704425960,0.00113322,3295.3,3295.0,5.5575]
[1736704426159,0.00113322,3295.3,3295.0,0.5575]
[1736704426368,0.06476529,3295.2,3295.0,0.5575]
[1736704426741,0.00113322,3295.3,3295.0,0.58784688]
[1736704426946,0.00113322,3295.3,3295.0,0.5575]
[1736704427292,0.06476529,3295.2,3295.0,0.5878459]
[1736704427433,0.06476529,3295.2,3295.0,0.5575]
[1736704427645,0.00113322,3295.3,3295.0,0.5575]
[1736704427833,0.06476529,3295.1,3295.0,0.5575]
[1736704428033,0.00113322,3295.3,3295.0,2.61237]
[1736704428386,0.00113322,3295.3,3295.0,0.5575]
[1736704428538,0.06476529,3295.2,3295.0,0.5575]
[1736704428733,0.00113322,3295.3,3295.0,0.5575]
[1736704428933,0.06476529,3295.2,3295.0,0.5575]
[1736704429236,0.00113322,3295.3,3295.0,0.5575]
[1736704429435,0.06476529,3295.1,3295.0,0.5575]
[1736704429661,0.00113322,3295.3,3295.0,3.28077]
[1736704429862,0.06476529,3295.1,3295.0,0.5575]
[1736704430069,0.00113322,3295.3,3295.0,3.27738]
[1736704430264,0.06476529,3295.1,3295.0,0.5575]
[1736704430432,0.00113322,3295.3,3295.0,0.5575]
[1736704430634,0.06476529,3295.1,3295.0,0.5575]
[1736704430856,0.00113322,3295.3,3295.0,0.5575]
[1736704431061,0.06476529,3295.1,3295.0,0.5575]
[1736704431269,0.00113322,3295.3,3295.0,0.5575]
[1736704431490,0.06476529,3295.1,3295.0,0.5575]
[1736704431643,0.00113322,3295.3,3295.0,0.5575]
[1736704431845,0.06501886,3295.1,3295.0,0.5575]
[1736704432145,0.00113322,3295.3,3295.0,0.5575]
[1736704432553,0.06518526,3295.2,3295.0,0.58784592]
[1736704432763,0.00113322,3295.3,3295.0,0.5575]
[1736704432962,0.06518526,3295.2,3295.0,0.5575]
[1736704433285,0.00113322,3295.3,3295.0,0.5575]
[1736704433735,0.06518526,3295.2,3295.0,0.5575]
[1736704433938,0.79,3295.1,3294.6,3.0]
[1736704434138,0.06518526,3295.0,3294.7,0.0075]
[1736704434341,0.06518526,3295.0,3294.5,8.92]
[1736704434342,3.38590988,3295.0,3294.5,8.92]
[1736704434653,0.79,3294.8,3294.1,0.7635]
[1736704435057,0.79,3294.8,3294.2,0.5575]
[1736704435058,0.06515355,3294.7,3294.2,0.5575]
[1736704435261,0.79,3294.8,3294.2,0.5575]
[1736704435567,0.79,3294.8,3294.2,0.84016638]
[1736704436358,0.79,3294.8,3294.4,0.5575]
[1736704436554,1.26139817,3294.7,3294.3,0.28266638]
[1736704436764,0.79,3294.6,3294.3,0.28266638]
[1736704436964,0.06515355,3294.5,3294.3,0.28266638]
[1736704437456,0.06515355,3294.5,3294.4,0.55]
[1736704437798,0.48276237,3294.5,3293.8,0.7635]
[1736704437944,2.91469,3294.6,3293.9,0.5575]
[1736704438148,2.91469,3294.6,3293.9,0.78384987]
[1736704439235,2.91469,3294.6,3293.9,0.5575]
[1736704439541,2.91469,3294.6,3294.1,0.55]
[1736704440624,2.91469,3294.6,3293.9,0.5575]